bitfinex-derivatives/quotes_BTCF0:USTF0_20210111
["timestamp","ask_amount","ask_price","bid_price","bid_amount"]
[1610380240792,0.13632608,31562.0,31469.0,1.5]
[1610380241191,0.08516,31574.0,31469.0,1.5]
[1610380241393,0.08516,31574.0,31544.0,0.08686]
[1610380242194,0.08516,31574.0,31553.0,0.08283]
[1610380242393,0.2751,31606.0,31560.0,0.07977]
[1610380242591,0.2751,31606.0,31576.0,0.13632608]
[1610380242991,0.2751,31606.0,31560.0,0.07977]
[1610380243192,0.37567,31606.0,31560.0,0.07977]
[1610380244698,0.37567,31606.0,31591.0,0.13632608]
[1610380245696,0.2751,31606.0,31590.0,0.08058]
[1610380246697,4.2708,31652.0,31590.0,0.08058]
[1610380247298,0.2811,31670.0,31649.0,0.13632608]
[1610380247696,0.2811,31670.0,31632.0,0.10965]
[1610380247898,0.37502,31670.0,31632.0,0.10965]
[1610380248996,0.37502,31670.0,31590.0,0.08058]
[1610380249196,0.37502,31670.0,31637.0,0.13632608]
[1610380249397,0.37502,31670.0,31606.0,0.09771]
[1610380253806,0.37502,31670.0,31656.0,0.13632608]
[1610380254206,0.37502,31670.0,31629.0,0.08882]
[1610380254405,0.36502,31670.0,31629.0,0.08882]
[1610380255008,0.36502,31670.0,31606.0,0.09771]
[1610380255207,0.36502,31670.0,31590.0,0.08058]
[1610380255406,0.36502,31670.0,31571.0,0.2013]
[1610380255706,0.34502,31670.0,31606.0,0.575]
[1610380255907,0.34502,31670.0,31606.0,0.67731]
[1610380256407,0.09392,31670.0,31638.0,0.0038]
[1610380256607,4.3811,31682.0,31638.0,0.0038]
[1610380258409,0.13632608,31639.0,31638.0,0.0038]
[1610380258613,0.24288608,31639.0,31638.0,0.0038]
[1610380258811,0.10656,31639.0,31638.0,0.0038]
[1610380259010,0.10656,31639.0,31606.0,0.67731]
[1610380259609,0.10656,31639.0,31606.0,0.575]
[1610380260411,0.13632608,31607.0,31606.0,0.575]
[1610380260612,0.23504608,31607.0,31606.0,0.575]
[1610380261610,0.23504608,31607.0,31496.0,0.2271]
[1610380261611,0.09872,31607.0,31496.0,0.2271]
[1610380262814,0.13632608,31575.0,31557.0,0.13632608]
[1610380263013,0.10318,31575.0,31557.0,0.13632608]
[1610380263413,0.10318,31575.0,31497.0,1.5]
[1610380265215,0.10318,31575.0,31549.0,3.9029]
[1610380265416,0.10318,31575.0,31574.0,0.13632608]
[1610380265614,0.10318,31575.0,31556.0,0.07495]
[1610380265615,0.09318,31575.0,31556.0,0.07495]
[1610380266515,0.09318,31575.0,31556.0,0.03445]
[1610380266715,0.09318,31575.0,31478.0,2.21460976]
[1610380266916,0.09318,31575.0,31461.0,2.21524864]
[1610380267317,0.09318,31575.0,31458.0,2.21587521]
[1610380267620,0.09318,31575.0,31454.0,2.2234169]
[1610380268020,0.2813,31574.0,31444.0,2.22376387]
[1610380268419,0.2813,31574.0,31443.0,2.23096677]
[1610380268819,1.5,31573.0,31435.0,2.23137641]
[1610380269219,1.5,31573.0,31432.0,2.23180053]
[1610380269420,1.61258,31573.0,31432.0,2.23180053]
[1610380269618,1.61258,31573.0,31422.0,2.78975067]
[1610380269619,1.61258,31573.0,31422.0,2.23614243]
[1610380269819,1.61258,31573.0,31469.0,0.13632608]
[1610380270219,0.3744,31572.0,31469.0,0.13632608]
[1610380270420,1.5,31571.0,31466.0,0.10237]
[1610380270622,0.0938,31570.0,31466.0,0.10237]
[1610380270821,1.0,31556.0,31466.0,0.10237]
[1610380271021,1.08781,31556.0,31466.0,0.10237]
[1610380271821,0.13632608,31524.0,31522.0,0.13632608]
[1610380272421,0.06931,31525.0,31466.0,0.10237]
[1610380273225,0.0958,31524.0,31466.0,0.10237]
[1610380273723,0.13632608,31483.0,31468.0,0.13632608]
[1610380274523,0.09512,31488.0,31470.0,4.1479]
[1610380274725,0.09512,31488.0,31466.0,0.10237]
[1610380274925,0.09512,31488.0,31406.0,3.73342418]
[1610380275124,0.09512,31488.0,31408.0,2.23334458]
[1610380275324,0.0947,31491.0,31409.0,1.5]
[1610380275524,0.0947,31491.0,31413.0,0.1702778]
[1610380275725,0.08138,31502.0,31414.0,1.5]
[1610380276424,0.08138,31502.0,31471.0,0.13632608]
[1610380276625,0.094,31501.0,31471.0,0.09877]
[1610380276825,0.08138,31502.0,31471.0,0.09877]
[1610380277825,0.0941,31501.0,31471.0,0.09877]
[1610380278526,0.0941,31501.0,31475.0,0.13632608]
[1610380278726,0.0941,31501.0,31471.0,0.09877]
[1610380279725,0.0941,31501.0,31440.0,4.1955]
[1610380280729,0.282,31500.0,31440.0,4.1955]
[1610380280926,1.5,31499.0,31440.0,4.1955]
[1610380281128,0.13632608,31441.0,31440.0,4.1955]
[1610380282128,0.08994,31463.0,31440.0,4.1955]
[1610380282330,0.08994,31463.0,31440.0,0.10319]
[1610380283130,0.13632608,31441.0,31440.0,0.10319]
[1610380283930,0.6672,31441.0,31440.0,0.10319]
[1610380284731,0.4697,31441.0,31440.0,0.10319]
[1610380284932,3.8507,31485.0,31440.0,0.10319]
[1610380287338,3.8507,31485.0,31415.0,4.2297]
[1610380287538,0.13632608,31460.0,31440.0,0.10647]
[1610380288240,0.10235,31485.0,31440.0,0.10647]
[1610380288843,0.19765,31485.0,31440.0,0.10647]
[1610380289042,0.10235,31485.0,31440.0,0.10647]
[1610380289644,0.10235,31485.0,31447.0,0.13632608]
[1610380289844,0.10235,31485.0,31447.0,0.08311]
[1610380291244,0.10235,31485.0,31440.0,0.10647]
[1610380292046,0.13632608,31469.0,31468.0,0.13632608]
[1610380292247,0.23190608,31469.0,31468.0,0.13632608]
[1610380292448,0.09558,31469.0,31440.0,0.10647]
[1610380292648,0.09558,31469.0,31414.0,5.0916]
[1610380293450,0.09558,31469.0,31366.0,1.5]
[1610380293650,0.09558,31469.0,31364.0,2.18241603]
[1610380294048,0.09558,31469.0,31445.0,0.13632608]
[1610380294249,0.09558,31469.0,31445.0,0.20776608]
[1610380294448,0.10587,31477.0,31445.0,0.07144]
[1610380295751,0.10587,31477.0,31434.0,0.11131]
[1610380295951,0.10587,31477.0,31434.0,0.03181]
[1610380296156,0.10587,31477.0,31434.0,0.02861]
[1610380296751,0.13632608,31435.0,31434.0,0.02861]
[1610380296951,0.13632608,31435.0,31404.0,0.13632608]
[1610380297352,0.08774,31459.0,31404.0,0.13632608]
[1610380298251,0.08774,31459.0,31351.0,2.18602468]
[1610380298452,0.095,31458.0,31413.0,0.1202778]
[1610380298853,0.13632608,31414.0,31413.0,0.1202778]
[1610380299052,0.09939,31445.0,31413.0,0.1202778]
[1610380300856,0.13632608,31421.0,31413.0,0.1202778]
[1610380301662,0.10483,31434.0,31413.0,0.1202778]
[1610380302460,0.2943,31457.0,31413.0,0.1202778]
[1610380302860,0.13632608,31453.0,31413.0,0.1202778]
[1610380303459,0.2943,31457.0,31413.0,0.1202778]
[1610380304264,4.4229,31482.0,31413.0,0.1202778]
[1610380304465,4.3281,31482.0,31414.0,1.5]
[1610380304662,0.2877,31533.0,31415.0,0.0957]
[1610380305262,0.2978,31600.0,31415.0,0.0957]
[1610380305463,0.2978,31600.0,31595.0,0.13632608]
[1610380305864,0.2978,31600.0,31572.0,0.09037]
[1610380306064,0.09298,31600.0,31572.0,0.09037]
[1610380307466,0.10973,31626.0,31572.0,0.09037]
[1610380307666,0.10663,31615.0,31572.0,0.09037]
[1610380308066,0.10663,31615.0,31614.0,0.13632608]
[1610380308866,0.10973,31626.0,31603.0,0.08446]
[1610380309466,0.10973,31626.0,31596.0,0.07332]
[1610380309666,0.10973,31626.0,31580.0,0.10616]
[1610380310066,0.13632608,31591.0,31580.0,0.10616]
[1610380310666,0.07784,31602.0,31580.0,0.10616]
[1610380310866,0.07784,31602.0,31577.0,3.8903]
[1610380310867,0.07479,31592.0,31577.0,3.8903]
[1610380311066,0.07784,31602.0,31580.0,0.07267]
[1610380311268,0.07784,31602.0,31577.0,3.8903]
[1610380311269,0.11274,31595.0,31577.0,3.8903]
[1610380311867,1.5,31594.0,31475.0,2.18573055]
[1610380312067,0.13632608,31490.0,31465.0,2.18667385]
[1610380312273,0.13632608,31490.0,31466.0,0.2954]
[1610380312469,0.13632608,31490.0,31466.0,0.38391]
[1610380313072,0.07022,31504.0,31466.0,0.38391]
[1610380313680,0.08198,31512.0,31466.0,1.88391]
[1610380313882,4.2517,31562.0,31466.0,1.88391]
[1610380314093,0.13632608,31552.0,31545.0,0.13632608]
[1610380314279,4.35427,31562.0,31545.0,0.13632608]
[1610380314874,4.35427,31562.0,31543.0,0.07307]
[1610380315081,4.35427,31562.0,31535.0,0.07617]
[1610380315278,4.2517,31562.0,31535.0,0.07617]
[1610380316672,0.13632608,31536.0,31521.0,0.13632608]
[1610380317071,0.13632608,31536.0,31466.0,0.38391]
[1610380317671,0.10979,31540.0,31466.0,0.38391]
[1610380318272,0.10979,31540.0,31466.0,0.37391]
[1610380319477,0.10979,31540.0,31467.0,1.5]
[1610380319675,0.09544,31564.0,31467.0,1.5]
[1610380320076,0.03,31534.0,31467.0,1.5]
[1610380320277,1.0,31590.0,31467.0,1.5]
[1610380320677,1.0,31590.0,31470.0,2.22183622]
[1610380320876,0.11111,31597.0,31471.0,1.5]
[1610380321080,0.11111,31597.0,31477.0,2.22454308]
[1610380321278,0.11111,31597.0,31478.0,1.5]
[1610380321484,0.13632608,31557.0,31550.0,0.13632608]
[1610380321679,0.08951,31570.0,31481.0,5.0006]
[1610380321879,0.08951,31570.0,31481.0,6.5006]
[1610380322881,0.08951,31570.0,31481.0,8.72944252]
[1610380323080,0.11111,31597.0,31481.0,8.72944252]
[1610380323479,0.11111,31597.0,31487.0,2.22871376]
[1610380323680,0.13632608,31589.0,31488.0,1.5]
[1610380323881,0.20489608,31589.0,31488.0,1.5]
[1610380324481,0.20489608,31589.0,31492.0,2.23074123]
[1610380324684,0.20489608,31589.0,31493.0,1.5]
[1610380324881,0.20489608,31589.0,31494.0,2.23072617]
[1610380325081,0.20489608,31589.0,31494.0,3.82978617]
[1610380325681,0.06857,31589.0,31583.0,0.13632608]
[1610380327787,0.13632608,31584.0,31583.0,0.13632608]
[1610380327984,0.13632608,31584.0,31561.0,0.11119]
[1610380328184,0.13632608,31584.0,31501.0,1.5]
[1610380328585,0.06857,31589.0,31501.0,1.5]
[1610380328984,0.11111,31597.0,31501.0,0.10176]
[1610380329185,3.7525,31610.0,31502.0,1.5]
[1610380329684,0.13632608,31593.0,31591.0,0.13632608]
[1610380329886,0.21821608,31593.0,31502.0,1.5]
[1610380330385,0.08189,31593.0,31502.0,1.5]
[1610380330584,0.08189,31593.0,31501.0,3.82750327]
[1610380331185,0.08189,31593.0,31501.0,2.32750327]
[1610380331385,0.08189,31593.0,31501.0,0.10176]
[1610380331592,0.08189,31593.0,31502.0,0.2952]
[1610380331789,0.08189,31593.0,31551.0,0.13632608]
[1610380332586,0.08189,31593.0,31551.0,0.23474608]
[1610380333186,0.08189,31593.0,31551.0,0.09842]
[1610380333687,0.08189,31593.0,31592.0,0.13632608]
[1610380333888,0.08189,31593.0,31551.0,0.09842]
[1610380334088,0.08189,31593.0,31568.0,0.10321]
[1610380334890,1.5,31662.0,31568.0,0.10321]
[1610380335190,1.5,31661.0,31568.0,0.10321]
[1610380335390,1.57387,31661.0,31568.0,0.10321]
[1610380335591,0.07387,31661.0,31568.0,0.10321]
[1610380335790,0.13632608,31591.0,31584.0,0.13632608]
[1610380335991,0.22464608,31591.0,31584.0,0.13632608]
[1610380337393,0.08832,31591.0,31584.0,0.13632608]
[1610380337792,0.09233,31603.0,31590.0,0.13632608]
[1610380337992,0.07387,31661.0,31590.0,0.13632608]
[1610380338795,0.07387,31661.0,31591.0,0.01]
[1610380340345,0.07387,31661.0,31596.0,4.6806]
[1610380340511,0.0937,31671.0,31660.0,0.13632608]
[1610380340703,0.0937,31671.0,31627.0,0.11256]
[1610380340897,0.11318,31671.0,31627.0,0.11256]
[1610380341499,0.2665,31746.0,31627.0,0.11256]
[1610380342301,0.3622,31746.0,31627.0,0.11256]
[1610380342501,0.2665,31746.0,31696.0,0.13632608]
[1610380343101,0.2665,31746.0,31660.0,0.11233]
[1610380343301,5.33423,31697.0,31660.0,0.11233]
[1610380344506,0.12632608,31692.0,31691.0,0.13632608]
[1610380344702,0.12632608,31692.0,31660.0,0.11233]
[1610380344703,5.33423,31697.0,31660.0,0.11233]
[1610380346503,5.33423,31697.0,31696.0,0.13632608]
[1610380346906,5.2435,31697.0,31687.0,0.07408]
[1610380347305,0.09779,31713.0,31687.0,0.07408]
[1610380348608,0.13632608,31763.0,31712.0,0.13632608]
[1610380348808,0.2953,31801.0,31712.0,0.10197]
[1610380349708,4.0126,31791.0,31714.0,0.6684]
[1610380349908,4.09351,31791.0,31714.0,0.6684]
[1610380350707,1.0,31768.0,31714.0,0.6684]
[1610380350907,1.09791,31768.0,31714.0,0.6684]
[1610380352710,0.09791,31768.0,31743.0,0.13632608]
[1610380353112,0.04021,31768.0,31743.0,0.13632608]
[1610380353513,0.02401,31768.0,31743.0,0.13632608]
[1610380353912,0.02401,31768.0,31736.0,0.10274]
[1610380356015,0.13632608,31771.0,31736.0,0.10274]
[1610380356418,4.09351,31791.0,31736.0,0.10274]
[1610380357215,0.13632608,31742.0,31736.0,0.10274]
[1610380357415,0.13632608,31742.0,31720.0,0.10837]
[1610380357416,0.20581608,31742.0,31720.0,0.10837]
[1610380357617,0.06949,31742.0,31720.0,0.10837]
[1610380357815,0.06949,31742.0,31714.0,0.6684]
[1610380359215,0.06949,31742.0,31605.0,2.13881805]
[1610380359415,0.06949,31742.0,31608.0,2.14108313]
[1610380359615,0.13632608,31712.0,31709.0,0.13632608]
[1610380359817,0.13632608,31712.0,31604.0,2.14112888]
[1610380360015,0.08792,31722.0,31604.0,2.14112888]
[1610380360215,0.08792,31722.0,31697.0,0.38713]
[1610380360416,0.06949,31742.0,31697.0,0.38713]
[1610380361217,0.06949,31742.0,31714.0,0.0099]
[1610380361416,0.08091,31791.0,31714.0,0.11242]
[1610380361617,0.13632608,31757.0,31748.0,0.13632608]
[1610380361817,0.10625,31757.0,31748.0,0.13632608]
[1610380362216,0.10625,31757.0,31714.0,0.11242]
[1610380363320,0.08974,31764.0,31714.0,0.11242]
[1610380363719,0.08974,31764.0,31763.0,0.13632608]
[1610380364519,1.0,31798.0,31761.0,0.09796]
[1610380364721,0.2953,31801.0,31761.0,0.09796]
[1610380365620,0.2953,31801.0,31757.0,0.02]
[1610380365821,0.39484,31801.0,31757.0,0.02]
[1610380366021,0.0946,31800.0,31757.0,0.02]
[1610380367522,0.39484,31801.0,31757.0,0.02]
[1610380368424,0.39484,31801.0,31800.0,0.01]
[1610380368622,0.39484,31801.0,31780.0,0.13632608]
[1610380368623,0.53116608,31801.0,31780.0,0.13632608]
[1610380368822,0.53116608,31801.0,31757.0,0.02]
[1610380369223,0.0936,31800.0,31757.0,0.02]
[1610380370622,1.0,31796.0,31757.0,0.02]
[1610380371326,0.13632608,31760.0,31757.0,0.02]
[1610380371523,0.20985608,31760.0,31757.0,0.02]
[1610380373034,0.07353,31760.0,31757.0,0.02]
[1610380373434,0.07353,31760.0,31759.0,0.13632608]
[1610380373628,0.07353,31760.0,31757.0,0.02]
[1610380375930,0.07353,31760.0,31759.0,0.13632608]
[1610380376530,0.09954,31801.0,31759.0,0.13632608]
[1610380376730,0.2788,31810.0,31757.0,0.02]
[1610380377631,0.3727,31810.0,31757.0,0.02]
[1610380377833,0.13632608,31758.0,31757.0,0.02]
[1610380378034,0.07041,31758.0,31757.0,0.02]
[1610380379835,0.07041,31758.0,31757.0,0.15632608]
[1610380380634,0.07041,31758.0,31757.0,0.02]
[1610380381837,0.20673608,31758.0,31757.0,0.02]
[1610380382237,0.07041,31758.0,31757.0,0.02]
[1610380382838,0.07041,31758.0,31736.0,5.2597]
[1610380383042,0.0948,31784.0,31714.0,0.0099]
[1610380383240,0.10799,31758.0,31714.0,0.0099]
[1610380383839,0.0938,31757.0,31714.0,0.0099]
[1610380384041,0.3729,31757.0,31714.0,0.0099]
[1610380384239,0.3729,31757.0,31620.0,2.16526491]
[1610380384439,0.3729,31757.0,31661.0,0.13632608]
[1610380384640,1.3729,31757.0,31661.0,0.22856608]
[1610380384840,1.3729,31757.0,31661.0,0.09224]
[1610380385241,2.8729,31757.0,31661.0,0.09224]
[1610380385441,1.3729,31757.0,31661.0,0.09224]
[1610380385640,1.3729,31757.0,31650.0,0.09999]
[1610380386442,0.13632608,31651.0,31644.0,0.13632608]
[1610380386644,0.24921608,31651.0,31591.0,2.1787148]
[1610380386843,0.24921608,31651.0,31585.0,2.17885893]
[1610380387043,0.24921608,31651.0,31579.0,2.17941421]
[1610380387442,0.24921608,31651.0,31576.0,2.36103206]
[1610380387443,0.24921608,31651.0,31576.0,2.18348458]
[1610380387643,0.11289,31651.0,31576.0,2.18348458]
[1610380387843,0.61909,31651.0,31572.0,2.18365671]
[1610380388243,0.61909,31651.0,31570.0,5.1558]
[1610380388443,0.61909,31651.0,31601.0,0.13632608]
[1610380388843,0.61909,31651.0,31599.0,0.1133]
[1610380390044,0.61909,31651.0,31600.0,1.5]
[1610380390243,0.5062,31651.0,31600.0,1.5]
[1610380390645,0.5062,31651.0,31650.0,0.13632608]
[1610380390845,0.2868,31662.0,31650.0,0.22669608]
[1610380392145,0.2868,31662.0,31650.0,0.09037]
[1610380392945,0.2868,31662.0,31631.0,0.06846]
[1610380393148,0.38491,31662.0,31649.0,0.13632608]
[1610380393748,0.38491,31662.0,31640.0,0.07983]
[1610380394149,0.2868,31662.0,31640.0,0.07983]
[1610380396552,0.2868,31662.0,31661.0,0.13632608]
[1610380397855,0.2868,31662.0,31650.0,0.078]
[1610380398257,0.38243,31662.0,31640.0,0.07983]
[1610380398458,0.38243,31662.0,31661.0,0.13632608]
[1610380398656,0.38243,31662.0,31645.0,0.07544]
[1610380399056,0.2868,31662.0,31645.0,0.07544]
[1610380399257,0.1294,31662.0,31645.0,0.07544]
[1610380399459,4.8244,31705.0,31645.0,0.07544]
[1610380400656,4.8244,31705.0,31704.0,0.13632608]
[1610380402061,4.8244,31705.0,31698.0,0.10109]
[1610380402661,4.8244,31705.0,31655.0,2.25506692]
[1610380403059,4.8244,31705.0,31646.0,2.25638617]
[1610380403364,4.8244,31705.0,31645.0,0.07544]
[1610380403762,4.8244,31705.0,31627.0,4.69]
[1610380405164,4.8244,31705.0,31704.0,0.13632608]
[1610380405964,0.0956,31707.0,31660.0,0.07268]
[1610380407166,0.13632608,31688.0,31686.0,0.13632608]
[1610380407364,0.23601608,31688.0,31686.0,0.13632608]
[1610380407565,0.09969,31688.0,31686.0,0.13632608]
[1610380408566,0.08935,31697.0,31686.0,0.13632608]
[1610380409166,0.08935,31697.0,31696.0,0.13632608]
[1610380410267,0.08935,31697.0,31685.0,0.07744]
[1610380410468,0.08935,31697.0,31678.0,0.0715]
[1610380410868,0.08935,31697.0,31660.0,0.07268]
[1610380411066,0.08935,31697.0,31674.0,0.13632608]
[1610380411267,0.08935,31697.0,31655.0,0.10506]
[1610380413077,0.08935,31697.0,31696.0,0.13632608]
[1610380413471,0.278,31706.0,31683.0,0.07471]
[1610380414480,0.278,31706.0,31655.0,0.10506]
[1610380415272,1.5,31705.0,31619.0,2.26161476]
[1610380415475,0.13632608,31656.0,31639.0,0.13632608]
[1610380415676,0.278,31706.0,31616.0,2.26186548]
[1610380415873,0.10082,31656.0,31616.0,0.07784]
[1610380416475,0.278,31706.0,31616.0,0.07784]
[1610380416674,0.0956,31707.0,31616.0,0.07784]
[1610380416874,0.10176,31714.0,31616.0,0.07784]
[1610380417074,2.06014431,31745.0,31616.0,0.07784]
[1610380417274,0.2869,31739.0,31630.0,2.25950455]
[1610380417474,0.35914,31739.0,31631.0,1.5]
[1610380417676,0.0955,31738.0,31653.0,2.2587847]
[1610380417875,0.13632608,31748.0,31653.0,2.2587847]
[1610380418075,0.13632608,31748.0,31653.0,2.3356447]
[1610380418275,0.13632608,31748.0,31658.0,2.25837305]
[1610380418676,0.2825,31752.0,31653.0,0.07686]
[1610380418875,1.5,31747.0,31653.0,0.07686]
[1610380419675,0.2825,31752.0,31698.0,0.13632608]
[1610380420278,0.2825,31752.0,31695.0,0.08318]
[1610380421682,0.2825,31752.0,31717.0,0.13632608]
[1610380421884,0.2825,31752.0,31695.0,0.08318]
[1610380422077,0.2825,31752.0,31688.0,0.0925]
[1610380423882,0.2825,31752.0,31751.0,0.13632608]
[1610380426382,0.2825,31752.0,31740.0,4.98332]
[1610380426583,0.2825,31752.0,31740.0,4.8837]
[1610380427784,0.2825,31752.0,31751.0,0.13632608]
[1610380428184,0.2825,31752.0,31744.0,0.10803]
[1610380428185,0.1427,31752.0,31744.0,0.10803]
[1610380428384,0.1427,31752.0,31751.0,0.08982]
[1610380430086,4.4859,31832.0,31751.0,0.08982]
[1610380432594,0.03,31825.0,31751.0,0.08982]
[1610380432787,0.10342,31825.0,31751.0,0.08982]
[1610380432990,0.10342,31825.0,31824.0,0.13632608]
[1610380433388,0.10342,31825.0,31789.0,0.08572]
[1610380434388,0.10342,31825.0,31767.0,3.9596]
[1610380434989,0.10342,31825.0,31813.0,0.13632608]
[1610380435592,0.10342,31825.0,31783.0,0.08612]
[1610380437091,0.10342,31825.0,31824.0,0.13632608]
[1610380437490,0.10342,31825.0,31783.0,0.08612]
[1610380438094,0.10342,31825.0,31783.0,0.07612]
[1610380439093,0.10342,31825.0,31824.0,0.13632608]
[1610380439895,0.10342,31825.0,31793.0,0.06949]
[1610380440295,0.01,31824.0,31793.0,0.06949]
[1610380441099,0.01,31824.0,31823.0,0.13632608]
[1610380441395,0.01,31824.0,31793.0,0.06949]
[1610380443201,0.01,31824.0,31823.0,0.13632608]
[1610380443400,0.01,31824.0,31823.0,0.23140608]
[1610380443999,0.01,31824.0,31823.0,0.09508]
[1610380444201,0.10624,31847.0,31823.0,0.09508]
[1610380445002,0.2988,31875.0,31823.0,0.09508]
[1610380446805,0.2988,31875.0,31874.0,0.13632608]
[1610380447808,0.2988,31875.0,31847.0,0.10768]
[1610380448008,0.38225,31875.0,31847.0,0.10768]
[1610380448707,0.38225,31875.0,31874.0,0.13632608]
[1610380449109,0.2988,31875.0,31874.0,0.13632608]
[1610380449308,0.2988,31875.0,31865.0,0.10595]
[1610380450508,0.10151,31917.0,31865.0,0.10595]
[1610380450708,0.10151,31917.0,31896.0,0.13632608]
[1610380450909,0.10151,31917.0,31896.0,0.21956608]
[1610380451110,0.275,31951.0,31896.0,0.08324]
[1610380452913,0.13632608,31944.0,31896.0,0.21956608]
[1610380453313,0.275,31951.0,31896.0,0.08324]
[1610380454314,0.2722,31997.0,31896.0,0.08324]
[1610380454517,0.2701,31996.0,31897.0,0.2964]
[1610380454716,0.35211,31996.0,31897.0,0.2964]
[1610380455018,0.13632608,31963.0,31897.0,0.2964]
[1610380455218,0.10016,31963.0,31897.0,0.2964]
[1610380457218,0.10016,31963.0,31962.0,0.13632608]
[1610380457419,0.10016,31963.0,31940.0,0.09542]
[1610380459019,0.0924,31962.0,31940.0,0.09542]
[1610380459220,0.10016,31963.0,31961.0,0.13632608]
[1610380460120,0.13632608,31984.0,31961.0,0.13632608]
[1610380460721,1.0,32070.0,31918.0,0.10923]
[1610380460922,1.0,32070.0,31932.0,0.08714]
[1610380461120,1.0,32070.0,31918.0,0.10923]
[1610380461323,0.095,32013.0,31926.0,0.09629]
[1610380461721,0.0933,31995.0,31926.0,0.09629]
[1610380462122,0.1556,32116.0,31926.0,0.09629]
[1610380462321,0.1556,32069.0,31926.0,0.09629]
[1610380462721,1.0,32061.0,31926.0,0.09629]
[1610380463124,0.0923,32025.0,31926.0,0.09629]
[1610380463323,0.0937,32017.0,31926.0,0.09629]
[1610380463523,0.095,32013.0,31926.0,0.09629]
[1610380463926,0.095,32013.0,31995.0,0.13632608]
[1610380464327,2.68134768,32132.0,31995.0,0.13632608]
[1610380464525,0.0931,32051.0,31947.0,0.11359]
[1610380464926,0.1556,32061.0,31947.0,0.11359]
[1610380465126,0.4735,32061.0,31947.0,0.11359]
[1610380465327,0.0922,32044.0,31947.0,0.11359]
[1610380465529,0.0942,32051.0,31947.0,0.11359]
[1610380465728,0.0942,32051.0,31927.0,0.2985]
[1610380465928,1.0,32064.0,31927.0,0.2985]
[1610380465929,0.0947,32050.0,31927.0,0.2985]
[1610380466328,0.13632608,31988.0,31978.0,0.13632608]
[1610380466529,0.23074608,31988.0,31978.0,0.13632608]
[1610380466728,0.09442,31988.0,31927.0,0.2985]
[1610380468328,0.13632608,31971.0,31967.0,0.13632608]
[1610380468528,0.22599608,31971.0,31926.0,0.09629]
[1610380468739,0.22599608,31971.0,31918.0,0.10923]
[1610380468929,0.22599608,31971.0,31849.0,2.09018732]
[1610380469336,0.22599608,31971.0,31852.0,2.08981345]
[1610380469530,0.22599608,31971.0,31852.0,0.07883]
[1610380469751,0.08967,31971.0,31852.0,0.07883]
[1610380471832,0.08967,31971.0,31934.0,4.7004]
[1610380473433,0.13632608,31987.0,31970.0,0.13632608]
[1610380473634,0.09442,31988.0,31970.0,0.13632608]
[1610380473835,5.45231,31996.0,31970.0,0.13632608]
[1610380474034,5.45231,31996.0,31939.0,0.07772]
[1610380477538,5.18221,31996.0,31939.0,0.07772]
[1610380478738,5.18221,31996.0,31935.0,0.2826]
[1610380479342,5.18221,31996.0,31995.0,0.13632608]
[1610380479739,5.18221,31996.0,31959.0,0.07433]
[1610380481141,0.08201,31996.0,31959.0,0.07433]
[1610380481341,5.2157,32022.0,31993.0,0.13632608]
[1610380483344,5.2157,32022.0,31959.0,0.07433]
[1610380483744,5.31871,32022.0,31959.0,0.07433]
[1610380484446,5.31871,32022.0,31945.0,3.718]
[1610380485746,5.31871,32022.0,32014.0,0.13632608]
[1610380487445,0.10301,32022.0,32014.0,0.13632608]
[1610380487847,0.10301,32022.0,32021.0,0.13632608]
[1610380488849,0.13632608,32046.0,31990.0,4.9293]
[1610380489977,0.0933,32055.0,31990.0,4.9293]
[1610380490153,4.4663,32057.0,31990.0,4.9293]
[1610380490568,2.38542535,32125.0,31986.0,0.08766]
[1610380490767,2.70797114,32129.0,31986.0,0.08766]
[1610380491170,0.3179,32129.0,31986.0,0.08766]
[1610380491369,0.2893,32125.0,31976.0,0.0983]
[1610380491581,0.19602,32076.0,31986.0,0.0904]
[1610380491967,0.13632608,32038.0,32033.0,0.13632608]
[1610380492167,0.2792,32075.0,31986.0,0.0904]
[1610380492359,0.10625,32038.0,31986.0,0.0904]
[1610380494256,0.07124,32049.0,31986.0,0.0904]
[1610380494456,0.07124,32049.0,32037.0,0.13632608]
[1610380494855,0.07124,32049.0,32031.0,0.11256]
[1610380495256,0.10847,32063.0,32031.0,0.11256]
[1610380496056,0.2792,32075.0,32031.0,0.11256]
[1610380496657,0.2792,32075.0,32074.0,0.13632608]
[1610380498457,0.2792,32075.0,32049.0,0.07502]
[1610380498658,0.2792,32075.0,32059.0,0.13632608]
[1610380499659,0.10312,32076.0,32059.0,0.13632608]
[1610380499859,0.2842,32122.0,32059.0,0.13632608]
[1610380500058,5.2418,32122.0,32059.0,0.13632608]
[1610380500459,5.2418,32122.0,32059.0,0.12632608]
[1610380500660,5.2418,32122.0,32049.0,0.07502]
[1610380500661,5.2418,32122.0,32089.0,0.13632608]
[1610380500860,5.2418,32122.0,32049.0,0.07502]
[1610380501060,5.35317,32122.0,32049.0,0.07502]
[1610380501861,5.35317,32122.0,32043.0,4.7706]
[1610380503261,5.35317,32122.0,32121.0,0.13632608]
[1610380503463,5.06897,32122.0,32105.0,0.08725]
[1610380503661,4.9576,32122.0,32105.0,0.08725]
[1610380505262,0.09308,32144.0,32121.0,0.13632608]
[1610380505462,0.09308,32144.0,32121.0,0.24021608]
[1610380506464,0.10228,32158.0,32121.0,0.10389]
[1610380507264,0.10228,32158.0,32157.0,0.13632608]
[1610380507666,0.2896,32165.0,32157.0,0.13632608]
[1610380508063,0.2896,32165.0,32146.0,0.10293]
[1610380509268,0.2896,32165.0,32164.0,0.13632608]
[1610380509867,0.2896,32165.0,32146.0,0.09264]
[1610380510066,0.38862,32165.0,32121.0,0.10389]
[1610380510269,0.38862,32165.0,32133.0,3.9465]